bitfinex-derivatives/quotes_SOLF0:USTF0_20241218
["timestamp","ask_amount","ask_price","bid_price","bid_amount"]
[1734532453622,21.99379419,215.75,215.6,5.55973881]
[1734532453826,6.67610299,215.74,215.57,4.5636]
[1734532454025,18.18778635,215.71,215.57,4.5636]
[1734532454224,9.67433663,215.7,215.58,5.61151168]
[1734532454420,5.87009515,215.7,215.53,18.18778635]
[1734532454628,8.26972146,215.69,215.53,18.18778635]
[1734532454830,2.87009515,215.68,215.53,18.18778635]
[1734532455026,2.87009515,215.67,215.56,5.50889665]
[1734532455324,1.5964,215.69,215.56,5.50889665]
[1734532455724,2.86860359,215.68,215.56,5.50889665]
[1734532456123,50.22896847,215.76,215.57,18.18778635]
[1734532456329,27.85980057,215.75,215.58,3.0]
[1734532456526,6.67294577,215.74,215.58,3.0]
[1734532456727,2.86847084,215.73,215.58,3.0]
[1734532457028,2.86847084,215.74,215.58,3.0]
[1734532457327,6.67186665,215.73,215.58,3.0]
[1734532457528,2.86847084,215.72,215.58,3.0]
[1734532457734,2.86847084,215.74,215.61,18.18778635]
[1734532457934,2.86847084,215.74,215.62,3.0223]
[1734532458129,3.0,215.75,215.62,4.541]
[1734532458328,3.80190172,215.74,215.62,4.541]
[1734532458528,2.86744074,215.73,215.62,4.541]
[1734532458831,3.0,215.75,215.62,4.541]
[1734532459330,2.86746934,215.74,215.62,4.541]
[1734532459530,2.86746934,215.73,215.62,4.541]
[1734532460031,3.0,215.75,215.62,4.541]
[1734532460331,2.86701344,215.74,215.62,4.541]
[1734532460629,3.0,215.75,215.62,4.541]
[1734532462635,2.86566104,215.74,215.62,4.541]
[1734532462829,2.86566104,215.73,215.62,4.541]
[1734532463030,2.86566104,215.73,215.56,5.50889665]
[1734532463230,3.0,215.75,215.56,5.50889665]
[1734532463231,24.85178347,215.72,215.56,5.50889665]
[1734532463531,3.0,215.75,215.5,7.5577]
[1734532463532,18.18778635,215.68,215.5,7.5577]
[1734532463732,9.98888265,215.67,215.5,4.5577]
[1734532463932,3.79528265,215.66,215.5,4.5577]
[1734532464133,2.86566104,215.65,215.5,4.5577]
[1734532464333,6.66094369,215.64,215.5,4.5577]
[1734532464629,2.86566104,215.64,215.5,4.5577]
[1734532464835,2.86566104,215.63,215.5,4.5577]
[1734532465231,2.86566104,215.62,215.53,0.85945]
[1734532465432,3.0,215.61,215.53,0.85945]
[1734532467232,24.84746095,215.6,215.53,0.85945]
[1734532467538,18.18778635,215.56,215.41,5.46191651]
[1734532467733,6.0687,215.55,215.41,5.46191651]
[1734532468134,6.0687,215.55,215.37,18.18778635]
[1734532468334,2.86553326,215.54,215.37,18.18778635]
[1734532469037,6.0687,215.55,215.37,18.18778635]
[1734532469629,3.79975463,215.54,215.38,5.58094254]
[1734532469835,2.86646959,215.54,215.38,5.58094254]
[1734532470132,6.0687,215.55,215.38,5.58094254]
[1734532470133,6.6667299,215.53,215.38,5.58094254]
[1734532470336,3.80003302,215.52,215.38,5.58094254]
[1734532470637,2.86669688,215.53,215.38,5.58094254]
[1734532470838,2.86669688,215.53,215.37,18.18778635]
[1734532470839,2.86762388,215.51,215.37,18.18778635]
[1734532471233,18.18778635,215.52,215.37,18.18778635]
[1734532471442,6.67239721,215.51,215.37,18.18778635]
[1734532471737,2.86913517,215.5,215.36,5.48447025]
[1734532471938,2.92,215.49,215.36,5.48447025]
[1734532472335,6.67630482,215.48,215.36,5.48447025]
[1734532472531,2.87088698,215.48,215.36,5.48447025]
[1734532472734,2.87088698,215.47,215.36,5.48447025]
[1734532472948,2.87088698,215.48,215.36,5.48447025]
[1734532474140,8.34558793,215.48,215.36,5.48447025]
[1734532474443,2.87088698,215.47,215.36,5.48447025]
[1734532476444,2.87088698,215.47,215.37,18.18778635]
[1734532476747,2.92,215.49,215.37,18.18778635]
[1734532477444,2.87630143,215.48,215.37,18.18778635]
[1734532477645,2.92,215.49,215.37,18.18778635]
[1734532478345,2.87674976,215.48,215.37,18.18778635]
[1734532478542,2.92,215.49,215.37,18.18778635]
[1734532479046,2.87712165,215.48,215.37,18.18778635]
[1734532479544,2.92,215.48,215.37,18.18778635]
[1734532479744,18.18778635,215.56,215.41,18.18778635]
[1734532479942,3.81435847,215.54,215.41,18.18778635]
[1734532480145,2.92,215.58,215.45,18.18778635]
[1734532480648,2.92,215.58,215.49,18.18778635]
[1734532480951,3.81540266,215.57,215.42,4.6071]
[1734532481139,6.69370115,215.56,215.42,4.6071]
[1734532481343,2.87829849,215.56,215.42,4.6071]
[1734532481540,2.87829849,215.55,215.42,4.6071]
[1734532481746,2.87829849,215.54,215.42,4.6071]
[1734532482148,2.92,215.58,215.42,4.6071]
[1734532482340,6.6917951,215.57,215.42,4.6071]
[1734532482545,2.92,215.58,215.42,4.6071]
[1734532482740,6.69085741,215.57,215.42,4.6071]
[1734532482945,2.87695824,215.57,215.42,4.6071]
[1734532483145,2.87695824,215.56,215.42,4.6071]
[1734532483645,2.87695824,215.55,215.42,4.6071]
[1734532483841,2.92,215.58,215.42,4.6071]
[1734532484145,6.68719222,215.57,215.42,4.6071]
[1734532484448,2.92,215.58,215.42,4.6071]
[1734532484449,6.68719222,215.56,215.42,4.6071]
[1734532484645,3.81191858,215.55,215.42,4.6071]
[1734532484849,2.87527364,215.56,215.36,5.48447025]
[1734532484850,18.18778635,215.52,215.36,5.48447025]
[1734532485051,12.58937947,215.51,215.33,3.0633]
[1734532485251,6.68487947,215.5,215.33,3.0633]
[1734532485449,4.43817364,215.5,215.33,3.0633]
[1734532485650,6.68218737,215.49,215.33,3.0633]
[1734532485852,6.68218737,215.48,215.33,3.0633]
[1734532486150,1.5629,215.5,215.33,3.0633]
[1734532486151,6.68218737,215.47,215.33,3.0633]
[1734532486352,2.87527364,215.46,215.33,3.0633]
[1734532486549,2.92,215.45,215.33,3.0633]
[1734532487353,2.92,215.45,215.35,5.54463242]
[1734532487855,1.5629,215.5,215.36,18.18778635]
[1734532488054,2.92,215.49,215.4,18.18778635]
[1734532488848,22.59218635,215.6,215.4,18.18778635]
[1734532489152,9.59471542,215.59,215.4,18.18778635]
[1734532489352,18.18778635,215.56,215.4,18.18778635]
[1734532489558,6.67471542,215.55,215.4,18.18778635]
[1734532489753,2.87016555,215.54,215.4,18.18778635]
[1734532490052,18.18778635,215.56,215.4,18.18778635]
[1734532490053,5.79016555,215.53,215.4,18.18778635]
[1734532490550,5.79016555,215.53,215.38,2.92]
[1734532490551,2.92,215.53,215.35,5.54463242]
[1734532490751,21.99154447,215.52,215.35,5.54463242]
[1734532490947,6.67323887,215.51,215.33,21.25108635]
[1734532491153,6.67323887,215.5,215.33,21.25108635]
[1734532491355,6.67323887,215.49,215.33,3.0633]
[1734532491555,6.67323887,215.48,215.33,3.0633]
[1734532491756,2.92,215.47,215.33,3.0633]
[1734532492054,2.86948075,215.46,215.33,3.0633]
[1734532492255,2.92,215.47,215.33,3.0633]
[1734532493657,1.5515,215.49,215.33,3.0633]
[1734532493857,2.92,215.48,215.33,3.0633]
[1734532494050,2.92,215.48,215.34,5.51620413]
[1734532494256,1.5515,215.49,215.39,18.18778635]
[1734532494257,2.92,215.49,215.39,18.18778635]
[1734532494752,2.92,215.49,215.35,18.18778635]
[1734532495666,18.18778635,215.48,215.19,128.2452187]
[1734532495867,18.18778635,215.44,215.25,18.18778635]
[1734532496166,9.59163697,215.43,215.28,5.46938105]
[1734532496366,5.78905032,215.42,215.28,5.46938105]
[1734532496569,5.78905032,215.41,215.28,5.46938105]
[1734532496766,2.92,215.41,215.28,5.46938105]
[1734532497567,2.87059116,215.4,215.25,18.18778635]
[1734532497767,2.87059116,215.39,215.25,18.18778635]
[1734532497962,2.87059116,215.38,215.25,18.18778635]
[1734532498167,2.87059116,215.37,215.23,4.5385]
[1734532498362,2.87059116,215.36,215.23,4.5385]
[1734532498563,3.051,215.38,215.23,4.5385]
[1734532498564,5.77059116,215.35,215.25,18.18778635]
[1734532498960,2.9,215.35,215.25,18.18778635]
[1734532499973,1.5947,215.4,215.26,2.9]
[1734532500167,2.9,215.39,215.26,2.9]
[1734532500369,9.57371306,215.39,215.26,2.9]
[1734532500567,2.8699639,215.38,215.29,18.18778635]
[1734532500772,2.8699639,215.43,215.29,18.18778635]
[1734532501070,5.7699639,215.43,215.29,18.18778635]
[1734532501268,3.80396125,215.42,215.29,18.18778635]
[1734532501472,2.9,215.43,215.29,18.18778635]
[1734532501671,3.80345363,215.42,215.29,18.18778635]
[1734532501874,2.9,215.43,215.29,18.18778635]
[1734532502076,3.8019908,215.42,215.29,18.18778635]
[1734532502270,3.8019908,215.41,215.29,18.18778635]
[1734532502473,2.9,215.43,215.29,18.18778635]
[1734532503275,3.8042232,215.42,215.29,18.18778635]
[1734532503574,21.99200955,215.41,215.25,18.18778635]
[1734532503776,21.99200955,215.41,215.24,5.48393664]
[1734532503777,3.8042232,215.4,215.24,5.48393664]
[1734532503968,3.8042232,215.39,215.24,5.48393664]
[1734532504174,3.8042232,215.38,215.23,4.5385]
[1734532504380,6.7042232,215.37,215.23,3.0454]
[1734532504573,3.8042232,215.36,215.23,3.0454]
[1734532504977,6.7727232,215.36,215.23,3.0454]
[1734532505178,3.8042232,215.35,215.23,3.0454]
[1734532505480,3.8042232,215.34,215.2,2.9]
[1734532505675,3.8042232,215.33,215.2,2.9]
[1734532505881,1.4649,215.36,215.23,18.18778635]
[1734532506179,3.80963643,215.35,215.23,18.18778635]
[1734532506377,2.9,215.37,215.24,4.625]
[1734532506571,3.8099151,215.36,215.24,4.625]
[1734532506876,3.0975,215.43,215.27,18.18778635]
[1734532506877,4.5089,215.43,215.27,18.18778635]
[1734532507079,3.81082411,215.42,215.28,2.9]
[1734532507269,3.81082411,215.41,215.28,2.9]
[1734532507472,3.81082411,215.4,215.27,21.08778635]
[1734532507780,3.81082411,215.39,215.27,21.08778635]
[1734532507979,3.81082411,215.38,215.27,21.08778635]
[1734532508176,4.5089,215.43,215.27,18.18778635]
[1734532508375,3.81840873,215.42,215.25,2.9]
[1734532508677,3.81840873,215.41,215.25,2.9]
[1734532508878,3.81840873,215.4,215.25,2.9]
[1734532509077,3.81840873,215.39,215.25,2.9]
[1734532509277,3.81840873,215.38,215.25,2.9]
[1734532509471,3.81840873,215.37,215.25,2.9]
[1734532509674,2.9,215.38,215.25,2.9]
[1734532509675,3.81840873,215.36,215.25,2.9]
[1734532509882,3.81840873,215.35,215.25,2.9]
[1734532510077,3.81840873,215.34,215.24,4.625]
[1734532510380,3.81840873,215.33,215.24,3.1111]
[1734532510580,3.81840873,215.32,215.24,3.1111]
[1734532510784,3.81840873,215.31,215.24,3.1111]
[1734532510972,1.4572,215.37,215.24,3.1111]
[1734532511280,3.8179918,215.36,215.24,3.1111]
[1734532511480,3.8179918,215.35,215.24,3.1111]
[1734532511683,3.8179918,215.34,215.24,3.1111]
[1734532511880,2.9,215.38,215.24,3.1111]
[1734532512075,3.81918203,215.37,215.24,3.1111]
[1734532512279,3.81918203,215.36,215.24,3.1111]
[1734532512481,3.81918203,215.35,215.24,3.1111]
[1734532512672,2.9,215.39,215.24,3.1111]
[1734532512877,3.82018015,215.38,215.24,3.1111]
[1734532513077,3.82018015,215.37,215.24,3.1111]
[1734532513281,3.82018015,215.36,215.24,3.1111]
[1734532513484,3.82018015,215.35,215.23,1.5422]
[1734532513781,2.9,215.39,215.23,1.5422]
[1734532513984,3.81935853,215.38,215.23,19.72998635]
[1734532514179,3.81935853,215.37,215.23,19.72998635]
[1734532514380,3.81935853,215.36,215.23,19.72998635]
[1734532514576,3.81935853,215.35,215.23,19.72998635]
[1734532514880,3.81935853,215.34,215.23,19.72998635]
[1734532515080,3.81935853,215.33,215.23,19.72998635]
[1734532515281,2.9,215.39,215.23,19.72998635]
[1734532515485,3.81939733,215.38,215.23,19.72998635]
[1734532515684,3.81939733,215.37,215.23,19.72998635]
[1734532515882,3.81939733,215.36,215.23,19.72998635]
[1734532516079,3.81939733,215.35,215.23,1.5422]
[1734532516283,3.81939733,215.34,215.23,1.5422]
[1734532516484,24.90718368,215.33,215.17,2.9599]
[1734532516682,3.81939733,215.32,215.17,2.9599]
[1734532516887,3.81939733,215.31,215.17,2.9599]
[1734532517186,3.81939733,215.3,215.18,5.45711891]
[1734532517382,3.81939733,215.29,215.18,5.45711891]
[1734532517589,18.18778635,215.27,215.18,5.45711891]
[1734532517886,6.71939733,215.26,215.18,5.45711891]
[1734532518077,3.81939733,215.25,215.18,5.45711891]
[1734532518277,3.81939733,215.24,215.12,1.4586]
[1734532518479,22.00718368,215.23,215.06,2.9]
[1734532518789,18.18778635,215.19,215.02,2.9]
[1734532518983,6.71939733,215.18,215.02,2.9]
[1734532519289,3.81128922,215.17,215.07,5.46102283]
[1734532519585,2.9,215.18,214.94,50.95558571]
[1734532519586,18.18778635,215.11,214.94,50.95558571]
[1734532519781,18.18778635,215.03,215.0,347.67831179]
[1734532519981,6.90817665,215.02,215.0,297.36395121]
[1734532520179,3.80817665,215.01,215.0,297.36395121]
[1734532520380,3.80817665,215.01,215.0,278.57246058]
[1734532520584,7.12817665,215.01,215.0,185.53990245]
[1734532520886,3.32,215.01,215.0,150.16174684]
[1734532521081,7.11287331,215.01,215.0,150.16174684]
[1734532521277,3.79287331,215.01,215.0,150.16174684]
[1734532521479,3.32,215.02,215.0,150.16174684]
[1734532521679,5.44463742,215.04,215.0,150.16174684]
[1734532521887,8.76463742,215.04,215.0,150.16174684]
[1734532522392,5.44463742,215.04,215.0,150.16174684]
[1734532522683,3.54,215.09,215.0,150.16174684]
[1734532522889,3.54,215.09,215.01,1.4646]
[1734532523191,29.72331265,215.16,215.01,3.0347]
[1734532523192,3.54,215.15,215.01,3.0347]
[1734532523380,3.78128509,215.14,215.01,3.0347]
[1734532523585,3.54,215.15,215.02,29.72331265]
[1734532523786,3.54,215.15,215.06,29.72331265]
[1734532523986,3.54,215.15,215.02,29.72331265]
[1734532524289,3.54,215.15,215.01,3.0347]
[1734532525293,3.54,215.15,215.02,29.72331265]
[1734532525788,3.54,215.15,215.01,3.0347]
[1734532526389,3.78057858,215.14,215.01,3.0347]
[1734532526695,3.54,215.15,215.01,3.0347]
[1734532526891,3.77877759,215.14,215.01,3.0347]
[1734532527191,29.72331265,215.12,215.0,150.16174684]
[1734532527490,29.72331265,215.04,215.0,150.16174684]
[1734532527793,3.54,215.03,215.0,150.16174684]
[1734532529489,29.72331265,215.08,215.0,150.16174684]
[1734532529695,3.54,215.07,215.0,150.16174684]
[1734532530393,29.72331265,215.12,215.0,150.16174684]
[1734532530600,3.54,215.11,215.0,150.16174684]
[1734532530793,3.54,215.1,215.0,150.16174684]
[1734532530987,3.54,215.09,215.0,150.16174684]
[1734532531393,29.72331265,215.08,215.0,150.16174684]
[1734532533092,3.76823074,215.07,215.0,150.16174684]
[1734532533394,3.76787573,215.06,215.0,150.16174684]
[1734532533590,5.57025026,215.06,215.0,150.16174684]
[1734532534498,53.18,215.11,215.0,150.16174684]
[1734532534796,3.54,215.1,215.0,150.16174684]
[1734532535290,13.95,215.33,215.0,150.16174684]
[1734532535291,29.72331265,215.16,215.0,150.16174684]
[1734532535597,5.8647,215.12,215.01,4.4751]
[1734532535896,1.1245,215.12,215.02,29.72331265]
[1734532536195,3.4491,215.12,215.05,2.3253]
[1734532536387,1.1245,215.12,215.02,29.72331265]
[1734532537196,29.72331265,215.2,215.02,29.72331265]
[1734532537491,7.31495873,215.19,215.06,29.72331265]
[1734532537689,2.3242,215.16,215.1,2.3248]
[1734532537887,2.3242,215.16,215.06,29.72331265]
[1734532538499,2.3243,215.15,215.06,29.72331265]
[1734532538896,9.18027383,215.21,215.09,2.3249]
[1734532539098,3.77641051,215.2,215.06,29.72331265]
[1734532539298,3.77641051,215.19,215.06,29.72331265]
[1734532539499,2.325,215.09,215.02,29.72331265]
[1734532540402,3.54,215.15,215.05,2.3253]
[1734532540601,3.78092413,215.14,215.02,29.72331265]
[1734532540800,3.54,215.15,215.02,29.72331265]
[1734532541003,2.3248,215.1,215.04,2.3253]
[1734532541198,3.54,215.15,215.02,5.60539768]
[1734532541398,29.72331265,215.12,215.01,4.4751]
[1734532541599,2.3255,215.04,215.01,4.4751]
[1734532541803,3.54,215.08,215.01,4.4751]
[1734532542906,2.3253,215.05,215.01,4.4751]
[1734532543199,3.54,215.08,215.01,4.4751]
[1734532543400,3.54,215.13,215.02,29.72331265]
[1734532543602,3.54,215.19,215.06,29.72331265]
[1734532543901,3.7828957,215.18,215.07,3.54]
[1734532544102,2.3238,215.19,215.08,3.54]
[1734532544299,3.54,215.25,215.08,3.54]
[1734532544300,5.57066959,215.24,215.1,29.72331265]
[1734532544503,3.78416188,215.23,215.1,29.72331265]
[1734532544703,6.10776188,215.22,215.17,2.324]
[1734532544903,2.3236,215.22,215.17,2.324]
[1734532545504,3.54,215.25,215.12,1.5931]
[1734532545703,2.3237,215.21,215.16,2.3241]
[1734532546302,2.3235,215.23,215.18,2.3239]
[1734532546495,3.78731242,215.22,215.18,2.3239]
[1734532546700,2.3235,215.23,215.18,2.3239]
[1734532546902,3.78934187,215.22,215.18,2.3239]
[1734532547107,2.3235,215.23,215.18,2.3239]
[1734532547305,3.789352,215.22,215.18,2.3239]
[1734532547505,3.79144519,215.21,215.17,2.324]
[1734532547800,5.56592755,215.26,215.14,5.58936304]
[1734532547999,5.56592755,215.26,215.16,2.324]
[1734532548000,2.3235,215.22,215.16,2.324]
[1734532548196,3.79108263,215.21,215.13,1.4499]
[1734532548397,3.79108263,215.2,215.13,1.4499]
[1734532548599,2.3239,215.18,215.13,3.7743]
[1734532549005,3.79126249,215.17,215.13,1.4499]
[1734532549303,3.54,215.22,215.13,1.4499]
[1734532549512,3.79177245,215.21,215.13,1.4499]
[1734532549704,3.79177245,215.2,215.13,1.4499]
[1734532549899,3.79298057,215.19,215.13,1.4499]
[1734532550105,2.3239,215.18,215.14,2.3243]
[1734532550609,3.79445934,215.17,215.13,1.4499]
[1734532550810,2.3239,215.18,215.13,1.4499]
[1734532551310,6.1190523,215.17,215.13,1.4499]
[1734532551501,3.7949523,215.16,215.13,1.4499]
[1734532551812,6.1192523,215.15,215.13,1.4499]
[1734532552110,5.56592755,215.26,215.13,1.4499]
[1734532552309,9.12592755,215.26,215.14,1.5959]
[1734532552509,2.3235,215.22,215.14,1.5959]
[1734532553108,2.3237,215.21,215.15,2.3242]
[1734532553300,2.3237,215.21,215.14,1.5959]
[1734532553705,9.12592755,215.26,215.14,1.5959]
[1734532554204,5.1533,215.34,215.17,29.72331265]
[1734532554401,2.3226,215.31,215.18,3.56]
[1734532554609,5.70238158,215.32,215.18,3.56]
[1734532554806,2.3228,215.29,215.23,2.3233]
[1734532555111,5.70238158,215.32,215.23,2.3233]
[1734532555410,2.3229,215.28,215.23,2.3233]
[1734532555611,5.70238158,215.32,215.24,2.3233]
[1734532555802,3.56,215.35,215.18,3.56]
[1734532556206,2.3225,215.32,215.18,3.56]
[1734532556611,2.3223,215.34,215.29,2.3227]
[1734532556811,3.56,215.35,215.21,29.72331265]
[1734532557414,3.56,215.35,215.22,1.5727]
[1734532557808,3.56,215.38,215.25,29.72331265]
[1734532558009,3.56,215.38,215.34,2.3221]
[1734532558405,3.56,215.38,215.26,3.0067]
[1734532558610,50.29153273,215.43,215.29,29.72331265]
[1734532558809,53.85153273,215.43,215.29,29.72331265]
[1734532559006,53.85153273,215.43,215.33,2.3223]
[1734532559211,53.85153273,215.43,215.29,29.72331265]
[1734532560117,2.3216,215.41,215.35,2.322]
[1734532560417,2.3216,215.41,215.29,29.72331265]
[1734532560619,53.80584455,215.43,215.29,29.72331265]
[1734532560915,53.80584455,215.43,215.3,5.51002697]
[1734532561515,2.3214,215.42,215.31,1.4694]
[1734532561817,50.24584455,215.43,215.33,29.72331265]
[1734532562013,3.54,215.51,215.34,3.56]
[1734532562215,3.54,215.51,215.37,29.72331265]
[1734532562420,3.54,215.51,215.38,2.9506]
[1734532562611,3.54,215.56,215.38,2.9506]
[1734532563115,2.3204,215.51,215.38,2.9506]
[1734532563517,3.54,215.56,215.41,29.72331265]
[1734532563717,3.54,215.56,215.42,1.4867]
[1734532565014,29.72331265,215.65,215.45,29.72331265]
[1734532565215,5.57849393,215.62,215.45,29.72331265]
[1734532565521,2.3194,215.6,215.55,2.3199]
[1734532565722,3.54,215.63,215.49,29.72331265]
[1734532565921,3.54,215.63,215.5,3.1546]
[1734532566220,5.8592,215.63,215.5,3.1546]
[1734532566425,3.54,215.63,215.51,1.6088]
[1734532566622,5.59186894,215.67,215.53,29.72331265]
[1734532566924,2.3188,215.66,215.54,3.54]
[1734532567125,3.54,215.71,215.57,29.72331265]
[1734532569121,1.5726,215.8,215.61,29.72331265]
[1734532569323,3.54,215.79,215.62,8.1928]
[1734532569625,2.3178,215.75,215.66,2.3187]
[1734532569825,2.3178,215.75,215.62,8.1928]
[1734532570020,3.54,215.78,215.62,8.1928]
[1734532570227,5.55816211,215.77,215.62,8.1928]
[1734532571028,5.55816211,215.77,215.63,5.70194774]
[1734532571327,2.3182,215.72,215.65,2.3189]
[1734532571525,5.55816211,215.77,215.63,5.70194774]
[1734532572730,2.3178,215.75,215.69,2.3184]
[1734532572925,5.55816211,215.77,215.63,5.70194774]
[1734532573322,5.55816211,215.77,215.69,2.3184]
[1734532573619,5.55816211,215.77,215.63,5.70194774]
[1734532574420,5.55816211,215.77,215.62,4.6528]
[1734532574826,2.3188,215.66,215.62,3.0493]
[1734532575325,3.54,215.72,215.62,3.0493]
[1734532575829,2.3187,215.67,215.62,3.0493]
[1734532576027,3.54,215.72,215.62,3.0493]
[1734532576826,3.54,215.72,215.69,2.3184]
[1734532577021,3.54,215.72,215.62,3.0493]
[1734532577930,3.54,215.72,215.65,2.3189]
[1734532578130,3.54,215.72,215.62,3.0493]
[1734532579031,3.54,215.72,215.65,2.3189]
[1734532579325,3.54,215.72,215.62,3.0493]
[1734532579523,5.8581,215.72,215.66,2.3187]
[1734532579723,3.54,215.72,215.62,3.0493]
[1734532580129,5.55816211,215.77,215.62,3.0493]
[1734532580831,2.318,215.74,215.68,2.3185]
[1734532581027,5.55816211,215.77,215.68,2.3185]
[1734532581330,5.55816211,215.77,215.64,2.3189]
[1734532581631,5.55816211,215.77,215.62,3.0493]
[1734532581926,5.55816211,215.77,215.63,18.16665894]
[1734532582328,3.54,215.78,215.63,18.16665894]
[1734532582831,2.3181,215.73,215.67,2.3187]
[1734532583131,21.70665894,215.78,215.63,18.16665894]
[1734532583326,2.3185,215.68,215.64,2.319]
[1734532583526,3.42,215.72,215.62,1.502]
[1734532583725,3.42,215.72,215.49,18.16665894]
[1734532583726,3.42,215.71,215.58,5.55965777]
[1734532583923,2.3192,215.62,215.58,5.55965777]
[1734532584122,3.42,215.66,215.58,5.55965777]
[1734532584323,2.319,215.64,215.58,5.55965777]
[1734532584531,3.42,215.66,215.55,2.3198]
[1734532584737,3.42,215.66,215.51,4.9618]
[1734532585634,3.42,215.66,215.51,10.39897382]
[1734532586031,2.3195,215.6,215.51,10.39897382]
[1734532586427,3.42,215.66,215.51,10.39897382]
[1734532586732,3.42,215.65,215.51,10.39897382]
[1734532587131,2.3193,215.61,215.51,10.39897382]
[1734532587331,3.42,215.65,215.51,10.39897382]
[1734532587527,3.42,215.65,215.53,29.56026648]
[1734532587733,2.3191,215.63,215.53,29.56026648]
[1734532587936,3.42,215.65,215.53,29.56026648]
[1734532588135,3.42,215.65,215.57,2.3197]
[1734532588435,29.56026648,215.63,215.5,1.4894]
[1734532588635,29.56026648,215.63,215.5,3.8098]
[1734532588939,2.3199,215.56,215.5,1.4894]
[1734532589231,3.42,215.64,215.56,2.3198]
[1734532589927,3.42,215.64,215.5,1.4894]
[1734532590133,3.42,215.64,215.53,29.56026648]
[1734532590337,3.42,215.64,215.54,1.4774]
[1734532591028,53.06,215.7,215.57,29.56026648]
[1734532591229,3.42,215.69,215.57,29.56026648]
[1734532591428,3.42,215.7,215.57,29.56026648]
[1734532591936,2.3185,215.69,215.57,29.56026648]
[1734532592136,3.42,215.7,215.61,29.56026648]
[1734532592537,3.42,215.7,215.62,1.591]
[1734532592833,3.42,215.72,215.68,2.3184]
[1734532593935,3.42,215.72,215.69,2.3184]
[1734532594240,5.738,215.74,215.69,2.3184]
[1734532594439,3.42,215.74,215.69,2.3184]
[1734532595235,3.42,215.74,215.7,2.3183]
[1734532595935,3.42,215.74,215.65,29.56026648]
[1734532596537,3.42,215.74,215.62,6.5738]
[1734532596736,3.42,215.74,215.62,3.1538]
[1734532597642,2.3182,215.71,215.67,2.3186]
[1734532597843,2.3182,215.71,215.62,3.1538]
[1734532598248,2.3182,215.71,215.67,2.3186]
[1734532598748,2.3181,215.72,215.67,2.3186]
[1734532599545,3.42,215.71,215.67,2.3186]
[1734532600637,2.318,215.74,215.62,3.1538]
[1734532600847,5.738,215.74,215.7,2.3183]
[1734532602147,3.42,215.74,215.71,2.3182]
[1734532602448,2.3178,215.75,215.71,2.3182]
[1734532602640,2.3178,215.75,215.65,29.56026648]
[1734532602641,3.42,215.76,215.74,2.3179]
[1734532602842,3.42,215.76,215.66,1.5475]
[1734532603239,5.7377,215.76,215.69,2.3184]
[1734532603439,5.7377,215.76,215.66,1.5475]
[1734532603440,3.42,215.76,215.66,1.5475]
[1734532603841,2.318,215.73,215.69,2.3184]
[1734532604147,3.42,215.76,215.66,1.5475]
[1734532604541,3.42,215.76,215.62,3.1538]
[1734532605145,2.3182,215.72,215.67,2.3186]
[1734532605342,2.3182,215.72,215.62,3.1538]
[1734532605547,3.42,215.76,215.64,29.56026648]
[1734532605742,2.318,215.74,215.64,29.56026648]
[1734532606351,2.318,215.74,215.69,2.3184]
[1734532606649,3.42,215.76,215.64,29.56026648]
[1734532606850,3.42,215.76,215.68,2.3185]
[1734532607748,3.42,215.76,215.64,29.56026648]
[1734532607947,2.318,215.73,215.69,2.3184]
[1734532608350,2.318,215.74,215.67,2.3186]
[1734532608541,2.318,215.74,215.64,29.56026648]
[1734532608744,11.44242709,215.77,215.64,18.16636537]
[1734532608948,3.2,215.77,215.64,18.16636537]
[1734532609347,2.3178,215.75,215.64,18.16636537]
[1734532610045,2.3178,215.75,215.72,2.3181]
[1734532610447,2.3178,215.75,215.64,18.16636537]
[1734532610847,2.3178,215.75,215.71,2.3181]
[1734532611145,2.3177,215.76,215.64,18.16636537]
[1734532611545,2.3177,215.76,215.72,2.318]
[1734532611745,1.4868,215.84,215.68,18.16636537]